Cogmind - Beta 17 @@@ ROGUE MODE // 2026.08.10 @ 18:31:52 Player: Conwew Result: Destroyed by 86-U22(R) with Subdweller Shrapnel Launcher Performance ------------- Evolutions (0) 0 Regions Visited (3) 600 Robots Destroyed (23) 115 Value Destroyed (479) 479 Prototype IDs (2) 40 Alien Tech Used (0) 0 Bonus (97) 97 TOTAL SCORE: 1331 Bonus ------- Follower Combat Kills 97 Cogmind --------- Core Integrity 0/250 Matter 289/300 Energy 100/100 System Corruption 0% Temperature Cool (0) Movement Walking (120) Location -10/Subcaves Parts ------- > --- POWER (1) -------- (None) > --- PROPULSION (2) --- Aluminum Leg Aluminum Leg > --- UTILITY (2) ------ Improved Heat Sink Visual Processing Unit > --- WEAPON (2) ------- Small Laser Battle Rifle > --- INVENTORY (5) ---- Signal Interpreter Makeshift Thermal Plating Scrap Shield Grenade Launcher Peak State ------------ > --- POWER ------------ Ion Engine > --- PROPULSION ------- Aluminum Leg Aluminum Leg > --- UTILITY ---------- Improved Heat Sink Visual Processing Unit > --- WEAPON ----------- Small Laser Battle Rifle > --- INVENTORY -------- Signal Interpreter Makeshift Thermal Plating Scrap Shield Grenade Launcher [Rating: 12] Favorites ----------- Power Ion Engine Engine Ion Engine Propulsion Aluminum Leg Leg Aluminum Leg Utility Visual Processing Unit Device Improved Heat Sink Processor Visual Processing Unit Protection Light Armor Plating Weapon Light Assault Rifle Energy Gun Small Laser Ballistic Gun Light Assault Rifle Build | -11 -10 -10 -10 ------- Run | Yrd Mat Min Sub Slots Evolved . | . . . . Power . | . . . . Propulsion . | . . . . Utility . | . . . . Weapon . | . . . . Parts Attached 21 | 5 4 6 6 Power 3 | 1 . 1 1 Engine 3 | 1 . 1 1 Core . | . . . . Reactor . | . . . . Propulsion 7 | 2 1 2 2 Treads . | . . . . Leg 7 | 2 1 2 2 Wheel . | . . . . Hover . | . . . . Flight . | . . . . Utility 4 | . 3 1 . Device 2 | . 1 1 . Storage . | . . . . Processor 1 | . 1 . . Hackware . | . . . . Protection 1 | . 1 . . Artifact . | . . . . Weapon 7 | 2 . 2 3 Energy Gun 1 | . . . 1 Energy Cannon . | . . . . Ballistic Gun 6 | 2 . 2 2 Ballistic Cannon . | . . . . Launcher . | . . . . Special Weapon . | . . . . Impact Weapon . | . . . . Slashing Weapon . | . . . . Piercing Weapon . | . . . . Special Melee Weapon . | . . . . Unidentified Prototypes . | . . . . Parts Lost 5 | . . . 5 Power 2 | . . . 2 Propulsion 1 | . . . 1 Utility . | . . . . Weapon 2 | . . . 2 Highest Loss Streak 2 | . . . 2 To Critical Strikes . | . . . . Average Backups 3 | . 1 5 4 Power . | . . 1 . Propulsion . | . . 1 . Utility 1 | . . 2 2 Weapon . | . . 1 1 Tool/Special . | . . . . Unused Backups 5 | . . . 5 Power . | . . . . Propulsion . | . . . . Utility 4 | . . . 4 Weapon 1 | . . . 1 Tool/Special . | . . . . Average Slot Usage (%) 92 | . 89 100 87 Engine 13 | . 14 14 11 Leg 25 | . 28 28 21 Device 10 | . . 14 14 Processor 13 | . 12 14 14 Protection 1 | . 5 . . Ballistic Gun 27 | . 28 28 25 Peak Build Rating 12 | 5 10 10 12 Average Rating 9 | 3 7 9 10 On Entrance 6 | . 5 10 10 Avg Prop Armor Cover (%) . | . . . . Naked Turns . | . . . . Heaviest Build 11 | 8 11 9 11 Greatest Support 20 | 20 20 20 20 Greatest Overweight (x) 1 | . . . 1 Average Overweight (x) . | . . . . Largest Inventory Capacity 5 | 5 5 5 5 Average Capacity 5 | 5 5 5 5 Most Carried 5 | . 5 5 5 Average Carried 4 | . 1 5 4 Final Capacity 5 | 5 5 5 5 Final Carried 5 | . 5 5 5 Class Distribution -------------------- 70% | Scavenger-Mutant 29% | Mutant Dominant Class ---------------- Mutant | -10/Materials Scavenger-Mutant | -10/Mines Scavenger-Mutant | -10/Subcaves Resources | -11 -10 -10 -10 ----------- Run | Yrd Mat Min Sub Matter Collected 624 | 200 180 138 106 Remotely . | . . . . Salvage Created 612 | . 326 217 69 Parts 46 | . 28 15 3 Haulers Intercepted 1 | . 1 . . Recyclers Shooed . | . . . . Parts Field Recycled . | . . . . Retrieved Matter . | . . . . Parts Self-Destructed 7 | . . . 7 Prevented . | . . . . Parts Restored . | . . . . Kills | -11 -10 -10 -10 ------- Run | Yrd Mat Min Sub Combat Hostiles Destroyed 17 | . 8 7 2 Guns 17 | . 8 7 2 Classes Destroyed 7 | . 5 . 2 Hauler 1 | . 1 . . Operator 1 | . 1 . . Turret 1 | . . . 1 Watcher 3 | . 3 . . Swarmer 10 | . 6 3 1 Grunt 6 | . 2 4 . Subdweller 1 | . . . 1 Best Kill Streak 4 | . 4 3 2 Combat Bots Only 3 | . 3 3 1 Max Kills in Single Turn 2 | . 1 2 1 Gunslinging . | . . . . Exploded . | . . . . Melee . | . . . . Uniques/NPCs Destroyed . | . . . . Combat | -11 -10 -10 -10 -------- Run | Yrd Mat Min Sub Hostile Shots Fired 123 | . 23 33 67 Missed 30 | . 3 7 20 Hits 93 | . 20 26 47 Projectile 93 | . 20 26 47 AOE 3 | . . . 3 Critical Strikes 4 | . 3 . 1 Damage Taken 1326 | . 215 338 773 Core 275 | . 27 59 189 Absorbed by Shields . | . . . . Core Remaining (%) 100 | 100 . . . Volleys Fired 70 | . 25 19 26 Largest 2 | . 2 2 2 Hottest 65 | . 40 40 65 Shots Fired 136 | . 50 38 48 Gun 136 | . 50 38 48 Cannon . | . . . . Launcher . | . . . . Special . | . . . . Kinetic 135 | . 50 38 47 Thermal 1 | . . . 1 Explosive . | . . . . Electromagnetic . | . . . . Robot Hit Streak 10 | . 10 8 8 Robot Miss Streak 3 | . 3 2 3 Penetration Max . | . . . . Secondary Targets 4 | . 1 2 1 Max Gunslinging Chain 1 | . 1 1 1 Shots Hit Robots 87 | . 31 22 34 Core Hits 40 | . 19 14 7 Critical Kills 1 | . . 1 . Critical Parts Destroyed 1 | . . 1 . Critical Strikes 2 | . . 2 . Destroy 2 | . . 2 . Melee Attacks . | . . . . Impact . | . . . . Slashing . | . . . . Piercing . | . . . . Sneak Attacks . | . . . . Combat Hostiles . | . . . . Follow-up Attacks . | . . . . Damage Inflicted 732 | . 354 208 170 Guns 732 | . 354 208 170 Cannons . | . . . . Explosions . | . . . . Melee . | . . . . Ramming . | . . . . Kinetic 721 | . 354 208 159 Thermal 11 | . . . 11 Explosive . | . . . . Electromagnetic . | . . . . Impact . | . . . . Slashing . | . . . . Piercing . | . . . . Highest Corruption . | . . . . Average Corruption . | . . . . Corruption Purged . | . . . . Corruption Blocked . | . . . . Overload Shots . | . . . . Overflow Damage . | . . . . Projectiles . | . . . . Explosions . | . . . . Melee . | . . . . Knockbacks . | . . . . Impact . | . . . . Kinetic . | . . . . Secondary . | . . . . Self-Inflicted Damage . | . . . . Shots . | . . . . Rammed . | . . . . Targets Rammed . | . . . . Kicked . | . . . . Crushed . | . . . . Highest Temperature 45 | . 45 1 . Average Temperature 16 | . 17 1 . Received Heat Transfer 426 | . 108 174 144 Siege Activations . | . . . . Martial Activations . | . . . . Shielding Activations . | . . . . Robots Disrupted . | . . . . Combat Hostiles . | . . . . Robots Corrupted . | . . . . Combat Hostiles . | . . . . Parts Fried . | . . . . Impact Corruptions . | . . . . Robots Melted . | . . . . Combat Hostiles . | . . . . Parts Melted . | . . . . Heat Transferred 25 | . . . 25 Parts Sabotaged . | . . . . Parts Stolen . | . . . . Parts Stripped . | . . . . Power Chain Reactions . | . . . . Alert | -11 -10 -10 -10 ------- Run | Yrd Mat Min Sub Maximum Alert Level . | . . . . Low Security (%) 100 | 100 100 100 . Level 1 . | . . . . Level 2 . | . . . . Level 3 . | . . . . Level 4 . | . . . . Level 5 . | . . . . High Security . | . . . . Max Security . | . . . . Peak Influence 142 | . 142 108 . Initial 38 | . . 38 . Average 38 | . 45 35 . Influence Increases 541 | . 228 178 135 Destroy 0b10 Robot/C 380 | . 160 140 80 Destroy 0b10 Robot/NC 25 | . 25 . . Destroy Leader 68 | . 38 30 . Allied During Kill 18 | . . 8 10 Successful Hack 5 | . 5 . . Lose Combat Pursuer 45 | . . . 45 Influence Decreases 541 | . 129 263 149 Entered New Map 69 | . . 61 8 Time Decay 402 | . 129 202 71 Lost Part 20 | . . . 20 Lost Ally 50 | . . . 50 Squads Dispatched . | . . . . Investigation . | . . . . Extermination . | . . . . Reinforcement . | . . . . Assault . | . . . . Garrison . | . . . . Intercept . | . . . . Searches Triggered . | . . . . Construction Impeded . | . . . . Haulers Reinforced . | . . . . Active Scanning Responses . | . . . . Cargo Convoy Interrupts . | . . . . Stealth | -11 -10 -10 -10 --------- Run | Yrd Mat Min Sub Distress Signals 1 | . 1 . . Communications Jammed . | . . . . Distress Signals . | . . . . Times Spotted 32 | . 13 7 12 Peak Tracking Total 5 | . 4 3 5 Tactical Retreats 1 | . . . 1 Traps | -11 -10 -10 -10 ------- Run | Yrd Mat Min Sub Traps Triggered . | . . . . Indirectly . | . . . . Trap Hack Attempts . | . . . . Triggered . | . . . . Disarmed . | . . . . Reprogrammed . | . . . . Reused . | . . . . Traps Extracted . | . . . . Installed . | . . . . Triggered . | . . . . Machines | -11 -10 -10 -10 ---------- Run | Yrd Mat Min Sub Machines Disabled 2 | . . . 2 Max in Single Turn . | . . . . Machines Repaired . | . . . . Machines Dismantled . | . . . . Machines Sabotaged . | . . . . Overloaded Fab Kills . | . . . . Hacking | -11 -10 -10 -10 --------- Run | Yrd Mat Min Sub Machines Accessed 3 | . 3 . . Terminals 3 | . 3 . . Fabricators . | . . . . Repair Stations . | . . . . Recycling Units . | . . . . Scanalyzers . | . . . . Garrison Access . | . . . . Total Hacks 5 | . 5 . . Successful 4 | . 4 . . Failed 1 | . 1 . . Catastrophic . | . . . . Database Lockouts . | . . . . Manual . | . . . . Terminals 5 | . 5 . . Fabricators . | . . . . Repair Stations . | . . . . Recycling Units . | . . . . Scanalyzers . | . . . . Garrison Access . | . . . . Terminal Hacks 4 | . 4 . . Prototype ID Bank 1 | . 1 . . Locate Traps 2 | . 2 . . Zone Layout 1 | . 1 . . Fabricator Hacks . | . . . . Repair Station Hacks . | . . . . Recycling Unit Hacks . | . . . . Scanalyzer . | . . . . Garrison Access Hacks . | . . . . Unauthorized Hacks . | . . . . Terminals . | . . . . Fabricators . | . . . . Repair Stations . | . . . . Recycling Units . | . . . . Scanalyzers . | . . . . Garrison Access . | . . . . Data Cores Recovered 1 | . 1 . . Used . | . . . . Hacking Detections 2 | . 2 . . Full Trace Events . | . . . . Feedback Events . | . . . . Feedback Blocked . | . . . . Robot Schematics Acquired . | . . . . Robots Built . | . . . . Authchips . | . . . . Time . | . . . . Total Robot Build Rating . | . . . . Part Schematics Acquired . | . . . . Parts Built . | . . . . Authchips . | . . . . Time . | . . . . Total Part Build Rating . | . . . . Part Studies Acquired . | . . . . Parts Repaired . | . . . . Time . | . . . . Parts Recycled . | . . . . Recycled Matter . | . . . . Retrieved Matter . | . . . . Retrieved Components . | . . . . Parts Scanalyzed . | . . . . Part Schematics Acquired . | . . . . Parts Damaged . | . . . . Bothacking | -11 -10 -10 -10 ------------ Run | Yrd Mat Min Sub Used RIF Installer . | . . . . Robots Hacked . | . . . . Non-combat . | . . . . Combat . | . . . . Robot Hacks Applied . | . . . . Relay Couplers Released . | . . . . Fabnet Peak Effective % . | . . . . Robots Rewired . | . . . . Allies Hacked . | . . . . Hacks Repelled . | . . . . Allies | -11 -10 -10 -10 -------- Run | Yrd Mat Min Sub Total Allies 5 | . . 5 . Largest Group 5 | . . 5 5 Highest-Rated Group 83 | . . 83 83 Highest-Rated Ally 31 | . . 31 31 Total Orders . | . . . . Ally Attacks 70 | . . 5 65 Total Damage 375 | . . 22 353 Kills 5 | . . . 5 Allies Corrupted . | . . . . Allies Melted . | . . . . Intel | -11 -10 -10 -10 ------- Run | Yrd Mat Min Sub Active Infowar (turns) 1751 | . 429 654 668 Optics 1751 | . 429 654 668 Robot Analysis Total . | . . . . Derelict Logs Recovered 2 | . . 2 . Drone Launches . | . . . . Drone Recoveries . | . . . . Exploration | -11 -10 -10 -10 ------------- Run | Yrd Mat Min Sub Turns Passed 1848 | 41 485 654 668 Spaces Moved 1224 | 32 324 400 468 Core 6 | 6 . . . Treads . | . . . . Legs 1218 | 26 324 400 468 Wheels . | . . . . Hover . | . . . . Flight . | . . . . Fastest Speed 50 | 50 120 120 120 Average Speed 120 | 106 120 120 122 Slowest Speed 190 | 120 120 120 190 Overloaded Moves . | . . . . Propulsion Burnouts . | . . . . Robots Hopped . | . . . . Potential Cave-ins . | . . . . Cave-ins Triggered . | . . . . Exploration Rate (%) 50 | 4 70 90 38 Regions Visited 3 Branch Regions 2 Pre-discovered Areas 1 | . . 1 . Known Exits Taken . | . . . . Unknown Exits Taken 3 | 1 1 1 . Scrap Searched . | . . . . Spaces Dug . | . . . . Terrain Destroyed . | . . . . Melee . | . . . . Projectile . | . . . . AOE . | . . . . Terrain Rammed . | . . . . Walls Destroyed . | . . . . Machines Disabled . | . . . . Actions | -11 -10 -10 -10 --------- Run | Yrd Mat Min Sub Total 1477 | 36 374 542 525 Wait 146 | . 14 112 20 Move 1221 | 31 323 399 468 Hop . | . . . . Pick Up 8 | . 6 . 2 Fast Attach 12 | 5 2 2 3 Attach 3 | . 1 . 2 Detach . | . . . . Swap 6 | . 1 4 1 Drop 11 | . 2 6 3 Fire 70 | . 25 19 26 Melee . | . . . . Ram . | . . . . Kick . | . . . . Crush . | . . . . Escape Stasis . | . . . . Rewire . | . . . . Trap . | . . . . Miscellaneous . | . . . . Route ------- -11/Scrapyard -10/Materials (discovered 4 exits: [*Mat] / [*Min x2] / [*Sub]) -10/Mines (discovered 2 exits: [*Mat] / [*Sub]) -10/Subcaves (discovered 2 exits: [*Mat] / [*Rec]) History --------- Turn | Location | Event 7 | -11/Scrapyard | Discovered new exit (range 15) 42 | -11/Scrapyard | Entered Materials 168 | -10/Materials | Discovered new exit (range 5) 231 | -10/Materials | Discovered new exit (range 11) 310 | -10/Materials | Build established: Mutant 324 | -10/Materials | Discovered new exit (range 18) 474 | -10/Materials | Discovered new exit (range 18) 527 | -10/Materials | Entered Mines 656 | -10/Mines | Discovered new exit (range 11) 829 | -10/Mines | Learned location of Storage (-9) 846 | -10/Mines | Build established: Scavenger-Mutant 1100 | -10/Mines | Learned 2 Materials zone layouts 1155 | -10/Mines | Assisted by bots powering up and referring to "LRC-V3" 1169 | -10/Mines | Discovered new exit (range 5) 1181 | -10/Mines | Entered Subcaves 1181 | -10/Subcaves | Accompanied by 5 allies 1182 | -10/Subcaves | Approached by a straggling Scientist 1186 | -10/Subcaves | Led the pair of lost Derelicts to an unsafe place 1300 | -10/Subcaves | Shifting Twisted Machinery released Battle Rifle 1429 | -10/Subcaves | Shifting Twisted Machinery released Sub. Laser 1495 | -10/Subcaves | A swath of the cavern ceiling suddenly collapsed 1576 | -10/Subcaves | Discovered new exit (range 17) 1658 | -10/Subcaves | Discovered new exit (range 10) 1663 | -10/Subcaves | Core integrity fell below 50% 1691 | -10/Subcaves | Lost 3 allies 1848 | -10/Subcaves | Core integrity fell below 20% 1849 | -10/Subcaves | Destroyed by 86-U22(R) with Subdweller Shrapnel Launcher Last Messages --------------- Acquired 17 matter. Acquired 19 matter. Acquired 7 matter. FL-100(c): "I think it's somewhere northeast of here" Lgt. Assault Rifle destroyed. KU-3KC(R) destroyed. Q5-WVR(R) destroyed. Dropped Hcp. Storage Unit. Acquired Scrap Shield. Acquired 13 matter. FL-100(c): "I think it's somewhere northeast of here" FL-100(c): "I think it's somewhere north of here" Mercenary 1a destroyed. 42-SJI(R) destroyed. Trooper 1b destroyed. Acquired Sml. Laser. Ion Engine destroyed. Map ----- +----------------------------------------------------+ | ?????????????????????????????????????????????????? | | ?????????????????????????????????????????????????? | | ?????????????????????????????????????????????????? | | ?????????????????????????????????????????????????? | | ?????????????????????????????????????????????????? | | ?????????????????????????????????????????????????? | | ?????????????????????????????????????????????????? | | ??????????????????????????????? ???????????????? | | ??????????????????????????????? #?????????????? | | ??????????????????????????????? #?????????????? | | ??????????????????????????????? ## ???????????? | | ?????????????????????????????? ???????????? | | ?????????????????????????????? ???????????? | | ?????????????????##??????????? ???????????? | | ????????????????? #?????????? ????????????? | | ?????????????????? ##???????? ?????????????? | | ??????????????????? ??????? #?????????????? | | ??????????????????? ??????? #??????????????? | | ???????????????????? ??????? #???????????????? | | ????????????????????? ???### #????????????????? | | ?????????????????????# ??## ##???????????????? | | ?????????????????????# ### #???????????????? | | ?????????????????????#;;; ; # #????????????????? | | ?????????????????????# c #?????????????????? | | ????????????????# ## = * ##?????????????????? | | ????????????????# *R%=*%@ #??????????????????? | | ????????????????# &! #??????????????????? | | ???????????# ##;;; ; #??????????????????? | | ???????????## ???### ;;; #??????????????????? | | ????????????## ?????## #??????????????????? | | ???????????????????## #???? ## ????????? | | ???????????????????# ### ???????? | | ???????????????????# ???????? | | ???????#####???????## ??????? | | ###????# ######### ???????? | | ##???# # # ## ### ???????? | | = #????# #??????????? | | #????# " #??????????? | | % =####?# " # # ##""" #### #??????????? | | % "#?# "########""" #??? #?????????? | | #?## #####???#### #???? #?????????? | | #??# #?"""#?????##""#???? ?????????? | | % "#??## ##""""??????#""#????? ?????????? | | " " "##### """"""??????? ?????? ??????????? | | " "" "# # """"##???????""##??????????????????? | | #<##### # """"#??????????????????????????????? | | ###???## ### ####??????????????????????????????? | | ???????## ### #?????????????????????????????????? | | ????????# ## ##?????#??????????????????????????? | | ???????## ### #??? "#??????????????????????????? | +----------------------------------------------------+ Best States ------------- Heat Dissipation 39 Energy Generation 10 Energy Capacity 250 Matter Stores 300 Matter Capacity 300 Sight Range 18 Terrain Scan Density 10 Armor Coverage 150 Evasion (%) 55 Item Schematics ----------------- None Robot Schematics ------------------ None Fabricated ------------ Nothing Repaired ---------- Nothing Studied --------- None Alien Tech Used ----------------- None Achievements -------------- None Challenges ------------ None Game ------ Seed MissileHypercooledCompactor Manual? 0 Play Time 00:10:55 Cumulative 73.6 hours Start 2026.08.10 @ 18:22:00 End 2026.08.10 @ 18:31:52 Sessions 1 Manual Loads 0 Difficulty Rogue Special Mode None Game No. 82 Rogue 82 Adventurer 0 Explorer 0 Win Type - Total 1 Types 1/0/0/0/0/0/0/0/0/0 Lore% 68 Gallery% 47 Achievement% 42 Wizard Run 0 Options --------- Layout 1 ASCII 0 Keyboard 0 Movement Mouse Keybinds 0 Fullscreen 1 Font 24/X11 Map View 50x35 Zoom Use 0% Tactical HUD 0 Map Filters NONE Filters NONE Steam 1 RUN: f8ff5e55-88e0-4e29-9e39-9cadee07c987